Cogmind - Beta 13 @@@ ROGUE MODE // 2024.04.18 @ 12:51:11 Player: monistgf Result: Self-destructed Performance ------------- Evolutions (1) 500 Regions Visited (2) 400 Robots Destroyed (12) 60 Value Destroyed (168) 168 Prototype IDs (0) 0 Alien Tech Used (0) 0 Bonus (0) 0 TOTAL SCORE: 1128 Bonus ------- None Cogmind --------- Core Integrity 73/400 Matter 219/300 Energy 99/100 System Corruption 0% Temperature Cool (6) Movement Core (50) Location -9/Materials Parts ------- > --- POWER (1) -------- (None) > --- PROPULSION (3) --- (None) > --- UTILITY (3) ------ (None) > --- WEAPON (2) ------- (None) > --- INVENTORY (5) ---- Light Ion Engine Small Storage Unit Small Laser Assault Rifle Grenade Launcher Peak State ------------ > --- POWER ------------ Ion Engine > --- PROPULSION ------- Wheel Compact Wheel Compact Wheel > --- UTILITY ---------- Small Storage Unit Large Storage Unit > --- WEAPON ----------- Light Assault Rifle Light Assault Rifle > --- INVENTORY -------- Light Ion Engine Aluminum Leg Small Laser Assault Rifle Grenade Launcher [Rating: 8] Favorites ----------- Power Ion Engine Engine Ion Engine Propulsion Aluminum Leg Leg Aluminum Leg Wheel Compact Wheel Utility Small Storage Unit Storage Small Storage Unit Protection Weapon Shielding Weapon Light Assault Rifle Energy Gun Small Laser Ballistic Gun Light Assault Rifle Launcher Grenade Launcher Build | -11 -10 -9 ------- Run | Yrd Mat Mat Slots Evolved 2 | . . 2 Power . | . . . Propulsion 1 | . . 1 Utility 1 | . . 1 Weapon . | . . . Parts Attached 9 | . 3 6 Power . | . . . Engine . | . . . Core . | . . . Reactor . | . . . Propulsion 4 | . 2 2 Treads . | . . . Leg 1 | . . 1 Wheel 3 | . 2 1 Hover . | . . . Flight . | . . . Utility 2 | . . 2 Device . | . . . Storage 1 | . . 1 Processor . | . . . Hackware . | . . . Protection 1 | . . 1 Artifact . | . . . Weapon 3 | . 1 2 Energy Gun . | . . . Energy Cannon . | . . . Ballistic Gun 2 | . 1 1 Ballistic Cannon . | . . . Launcher 1 | . . 1 Special Weapon . | . . . Impact Weapon . | . . . Slashing Weapon . | . . . Piercing Weapon . | . . . Special Melee Weapon . | . . . Unidentified Prototypes . | . . . Parts Lost 6 | . . 6 Power 1 | . . 1 Propulsion 3 | . . 3 Utility 1 | . . 1 Weapon 1 | . . 1 Highest Loss Streak 6 | . . 6 To Critical Strikes . | . . . Average Slot Usage (%) 69 | . 85 53 Engine 10 | . 14 6 Leg 15 | . 26 3 Wheel 9 | . 1 18 Storage 10 | . 14 7 Protection 1 | . . 3 Energy Gun 4 | . 9 . Ballistic Gun 16 | . 18 13 Naked Turns 53 | . . 53 Heaviest Build 30 | 12 12 30 Greatest Support 42 | 20 32 42 Greatest Overweight (x) 1 | . . 1 Average Overweight (x) . | . . . Largest Inventory Capacity 15 | . 8 15 Average Capacity 9 | . 8 11 Most Carried 8 | . 8 7 Average Carried 6 | . 6 5 Final Capacity 8 | 8 8 5 Final Carried 6 | 6 6 5 Class Distribution -------------------- 100% | Mutant Dominant Class ---------------- Mutant | -10/Materials Mutant | -9/Materials Resources | -11 -10 -9 ----------- Run | Yrd Mat Mat Matter Collected 249 | 200 33 16 Remotely . | . . . Salvage Created 206 | . 165 41 Parts 22 | . 17 5 Haulers Intercepted . | . . . Recyclers Shooed 2 | . 2 . Parts Field Recycled . | . . . Retrieved Matter . | . . . Parts Self-Destructed . | . . . Prevented . | . . . Kills | -11 -10 -9 ------- Run | Yrd Mat Mat Combat Hostiles Destroyed 12 | . 8 4 Guns 10 | . 8 2 AOE 2 | . . 2 Classes Destroyed 2 | . 2 . Swarmer 10 | . 6 4 Grunt 2 | . 2 . Best Kill Streak 5 | . 5 2 Combat Bots Only 5 | . 5 2 Max Kills in Single Turn 2 | . 2 1 Gunslinging 1 | . 1 . Exploded 1 | . . 1 Melee . | . . . Uniques/NPCs Destroyed . | . . . Combat | -11 -10 -9 -------- Run | Yrd Mat Mat Hostile Shots Fired 123 | . 29 94 Missed 27 | . 4 23 Damage Taken 900 | . 215 685 Core 384 | . 57 327 Absorbed by Shields . | . . . Redirected to Shielding 23 | . . 23 Core Remaining (%) 88 | 100 77 . Volleys Fired 40 | . 19 21 Largest 2 | . 2 2 Hottest 60 | . 60 40 Shots Fired 68 | . 38 30 Gun 65 | . 38 27 Cannon . | . . . Launcher 3 | . . 3 Special . | . . . Kinetic 50 | . 23 27 Thermal 15 | . 15 . Explosive 3 | . . 3 Electromagnetic . | . . . Robot Hit Streak 13 | . 13 4 Robot Miss Streak 3 | . 2 3 Penetration Max . | . . . Secondary Targets 2 | . 1 1 Max Gunslinging Chain 1 | . 1 1 Shots Hit Robots 40 | . 27 13 Core Hits 21 | . 13 8 Critical Kills 1 | . 1 . Critical Parts Destroyed . | . . . Critical Strikes 1 | . 1 . Destroy 1 | . 1 . Melee Attacks . | . . . Impact . | . . . Slashing . | . . . Piercing . | . . . Sneak Attacks . | . . . Combat Hostiles . | . . . Follow-up Attacks . | . . . Damage Inflicted 558 | . 252 306 Guns 349 | . 252 97 Cannons . | . . . Explosions 195 | . . 195 Melee . | . . . Ramming 14 | . . 14 Kinetic 223 | . 126 97 Thermal 126 | . 126 . Explosive 195 | . . 195 Electromagnetic . | . . . Impact . | . . . Slashing . | . . . Piercing . | . . . Highest Corruption . | . . . Average Corruption . | . . . Corruption Purged . | . . . Corruption Blocked . | . . . Overload Shots . | . . . Overflow Damage . | . . . Projectiles . | . . . Explosions . | . . . Melee . | . . . Knockbacks . | . . . Impact . | . . . Kinetic . | . . . Secondary . | . . . Self-Inflicted Damage 7 | . . 7 Shots . | . . . Rammed 3 | . . 3 Targets Rammed 4 | . . 4 Kicked 1 | . . 1 Crushed . | . . . Highest Temperature 40 | . 40 3 Average Temperature 14 | . 16 3 Received Heat Transfer 234 | . 42 192 Siege Activations . | . . . Robots Corrupted . | . . . Combat Hostiles . | . . . Parts Fried . | . . . Impact Corruptions . | . . . Robots Melted . | . . . Combat Hostiles . | . . . Parts Melted . | . . . Heat Transferred 275 | . 275 . Parts Sabotaged . | . . . Parts Stolen . | . . . Parts Stripped . | . . . Power Chain Reactions . | . . . Alert | -11 -10 -9 ------- Run | Yrd Mat Mat Peak Influence 316 | . 180 316 Initial 76 | . . 76 Average 113 | . 82 148 Maximum Alert Level 1 | . . 1 Low Security (%) 91 | . 100 81 Level 1 8 | . . 18 Level 2 . | . . . Level 3 . | . . . Level 4 . | . . . Level 5 . | . . . High Security . | . . . Max Security . | . . . Squads Dispatched 2 | . . 2 Investigation . | . . . Extermination . | . . . Reinforcement 2 | . . 2 Assault . | . . . Garrison . | . . . Intercept . | . . . Searches Triggered . | . . . Construction Impeded . | . . . Haulers Reinforced . | . . . Active Scanning Responses . | . . . Cargo Convoy Interrupts . | . . . Stealth | -11 -10 -9 --------- Run | Yrd Mat Mat Distress Signals 1 | . 1 . Communications Jammed . | . . . Distress Signals . | . . . Times Spotted 33 | . 8 25 Peak Tracking Total 13 | . 6 13 Tactical Retreats 2 | . . 2 Traps | -11 -10 -9 ------- Run | Yrd Mat Mat Traps Triggered . | . . . Indirectly . | . . . Trap Hack Attempts . | . . . Triggered . | . . . Disarmed . | . . . Reprogrammed . | . . . Reused . | . . . Traps Extracted . | . . . Installed . | . . . Triggered . | . . . Machines | -11 -10 -9 ---------- Run | Yrd Mat Mat Machines Disabled . | . . . Max in Single Turn . | . . . Machines Repaired . | . . . Machines Dismantled . | . . . Machines Sabotaged . | . . . Overloaded Fab Kills . | . . . Hacking | -11 -10 -9 --------- Run | Yrd Mat Mat Machines Accessed . | . . . Terminals . | . . . Fabricators . | . . . Repair Stations . | . . . Recycling Units . | . . . Scanalyzers . | . . . Garrison Access . | . . . Total Hacks . | . . . Successful . | . . . Failed . | . . . Catastrophic . | . . . Database Lockouts . | . . . Manual . | . . . Terminals . | . . . Fabricators . | . . . Repair Stations . | . . . Recycling Units . | . . . Scanalyzers . | . . . Garrison Access . | . . . Terminal Hacks . | . . . Fabricator Hacks . | . . . Repair Station Hacks . | . . . Recycling Unit Hacks . | . . . Scanalyzer . | . . . Garrison Access Hacks . | . . . Unauthorized Hacks . | . . . Terminals . | . . . Fabricators . | . . . Repair Stations . | . . . Recycling Units . | . . . Scanalyzers . | . . . Garrison Access . | . . . Data Cores Recovered . | . . . Used . | . . . Hacking Detections . | . . . Full Trace Events . | . . . Feedback Events . | . . . Feedback Blocked . | . . . Robot Schematics Acquired . | . . . Robots Built . | . . . Authchips . | . . . Time . | . . . Total Robot Build Rating . | . . . Part Schematics Acquired . | . . . Parts Built . | . . . Authchips . | . . . Time . | . . . Total Part Build Rating . | . . . Parts Repaired . | . . . Time . | . . . Parts Recycled . | . . . Recycled Matter . | . . . Retrieved Matter . | . . . Retrieved Components . | . . . Parts Scanalyzed . | . . . Part Schematics Acquired . | . . . Parts Damaged . | . . . Bothacking | -11 -10 -9 ------------ Run | Yrd Mat Mat Used RIF Installer . | . . . Robots Hacked . | . . . Non-combat . | . . . Combat . | . . . Robot Hacks Applied . | . . . Relay Couplers Released . | . . . Fabnet Peak Effective % . | . . . Robots Rewired . | . . . Allies Hacked . | . . . Hacks Repelled . | . . . Allies | -11 -10 -9 -------- Run | Yrd Mat Mat Total Allies . | . . . Largest Group . | . . . Highest-Rated Group . | . . . Highest-Rated Ally . | . . . Total Orders . | . . . Ally Attacks . | . . . Total Damage . | . . . Kills . | . . . Allies Corrupted . | . . . Allies Melted . | . . . Intel | -11 -10 -9 ------- Run | Yrd Mat Mat Robot Analysis Total . | . . . Derelict Logs Recovered . | . . . Drone Launches . | . . . Drone Recoveries . | . . . Exploration | -11 -10 -9 ------------- Run | Yrd Mat Mat Turns Passed 352 | . 182 170 Spaces Moved 249 | 1 93 155 Core 94 | . . 94 Treads . | . . . Legs 86 | 1 85 . Wheels 69 | . 8 61 Hover . | . . . Flight . | . . . Fastest Speed 50 | 120 100 50 Average Speed 86 | 120 118 67 Slowest Speed 120 | 120 120 105 Overloaded Moves . | . . . Propulsion Burnouts . | . . . Robots Hopped . | . . . Cave-ins Triggered . | . . . Exploration Rate (%) 20 | 2 26 33 Regions Visited 2 Branch Regions . Pre-discovered Areas . | . . . Known Exits Taken . | . . . Unknown Exits Taken 2 | 1 1 . Scrap Searched . | . . . Spaces Dug . | . . . Terrain Destroyed 15 | . . 15 Melee . | . . . Projectile . | . . . AOE 15 | . . 15 Terrain Rammed . | . . . Walls Destroyed . | . . . Machines Disabled . | . . . Actions | -11 -10 -9 --------- Run | Yrd Mat Mat Total 325 | . 132 193 Wait 18 | . 13 5 Move 247 | . 92 155 Hop . | . . . Pick Up 2 | . 1 1 Fast Attach 4 | . 2 2 Attach 2 | . . 2 Detach 2 | . 1 1 Swap 3 | . 1 2 Drop 3 | . 3 . Fire 40 | . 19 21 Melee . | . . . Ram 3 | . . 3 Kick 1 | . . 1 Crush . | . . . Escape Stasis . | . . . Rewire . | . . . Trap . | . . . Miscellaneous . | . . . Route ------- -11/Scrapyard -10/Materials -9/Materials (discovered 1 exit: [*Min]) History --------- Turn | Location | Event 1 | -11/Scrapyard | Discovered new exit (range 0) 1 | -11/Scrapyard | Entered Materials 177 | -10/Materials | Discovered new exit (range 3) 183 | -10/Materials | Entered another Materials area 183 | -9/Materials | Evolved 2 slots: Propulsion x1, Utility x1 250 | -9/Materials | Discovered new exit (range 13) 300 | -9/Materials | Released all parts (3) 314 | -9/Materials | Build established: Mutant 328 | -9/Materials | Core integrity fell below 50% 331 | -9/Materials | Lost 6 parts (1p3n1u1w) 353 | -9/Materials | Self-destructed Last Messages --------------- 00282_ R-06 Scavenger collects Lgt. Assault Rifle. 00285_ Ion Engine destroyed. 00288_ K-01 Serf collects debris. 00296_ Wheel destroyed. 00296_ S-10 Pest destroyed. 00298_ Kicked G-34 Mercenary. 00300_ Com. Wheel destroyed. 00300_ Released Lrg. Storage Unit. 00300_ Released Aluminum Leg. 00300_ Released Lgt. Assault Rifle. 00300_ Acquired 16 matter. 00303_ Slammed into G-34 Mercenary. 00303_ Destabilizing: Core damaged (-20). 00303_ K-01 Serf collects debris. 00308_ ALERT: Hostiles spotted, dispatching reinforcements to Terminal M006. 00309_ K-01 Serf collects debris. 00328_ Slammed into A-02 Transporter. 00331_ Slammed into O-16 Technician. Map ----- +----------------------------------------------------+ | ????????????????????????????????????# | | ????????????????????????????????????# | | ????????????????????????????????????# | | ????????????????????????????????????# | | ????????????????????????????????????# | | ???????????????????????#######?????## | | ???????????????????????# ####### | | ????????????????######## | | ????????????????#= # T | | ????????????????# # | | ????????????????# # ####### | | ????????????????# ### #######?###+# | | ????????????????? #?# # #??? | | ??????????????????? #?# + #???""" | | ???????????????######+#### # #???""T | | ????????######?# s # " " #??? ? | | ????????# # ### #?"R" #???? ? | | ????????# """ # #?# #?""" #?????? | | ????????# """ + #?# #??####?????? | | ????????# """ # #?#+#???????????? | | ????????# # #???????????????? | | ????????# ?# b #???????????????? | | ????????######?# #???????????????? | | ???????????????# #???????????????? | | ??????????###### #???????????????? | | ??????????# @ gg #???????????????? | | ??????????# #????????????? ?? | | ??????????# w ???????? ?? | | ??????????+ ##+#+##??????? ?? | | ??????????# ##### ##????????????? ?? | | ????????? #???? #?????????????? ?? | | ???????? #?????#?????????????? ?? | | ??????? #???????????????????? ?? | | ?????? #?###???????????????# #? | | ????? ??# ??????????????# #? | | ???? ??# "????#????????# ## | | ????## #?# """"" #????????# # | | ?????? #?# """"" #?##?????# # | | ???????? #?# """"" ## ????? # | | ??????????? #?# """ ## #?????# # | | ????????????? o #?# ## #?????# # | | ??????????????# #?# ??# #?#####+## | | ????????????### ### ????# #?# ] | | ????????????# ###+####### ### | | ????????????# # | | ????????????# T + | | ????????????# # | | ????????????# ############ ## | | ??????######## ##??????????# ## ] | | ??????# ] /# #???????????# ## | +----------------------------------------------------+ Best States ------------- Heat Dissipation 28 Energy Generation 10 Energy Capacity 250 Matter Stores 300 Matter Capacity 300 Sight Range 16 Terrain Scan Density 10 Weapon Shielding 33 Evasion (%) 55 Item Schematics ----------------- None Robot Schematics ------------------ None Fabricated ------------ Nothing Alien Tech Used ----------------- None Achievements -------------- None Challenges ------------ None Game ------ Seed GravmagMultinovaTreads Manual? 0 Play Time 00:05:53 Cumulative 248.5 hours Start 2024.04.18 @ 12:46:36 End 2024.04.18 @ 12:51:11 Sessions 1 Manual Loads 0 Difficulty Rogue Special Mode None Game No. 156 Rogue 156 Adventurer 0 Explorer 0 Win Type - Total 2 Types 2/0/0/0/0/0/0/0/0 Lore% 50 Gallery% 70 Achievement% 57 Wizard Run 0 Options --------- Layout 1 ASCII 0 Keyboard 1 Movement Numpad Keybinds 0 Fullscreen 1 Font 32/SmallcapsGlow Map View 50x35 Zoom Use 0% Tactical HUD 1 Map Filters NONE Filters NONE Steam 1 RUN: fd5e99d9-e33b-4add-9c8f-fcff32478a3e